Workbook

Sheet Сосна
E1: СОСНА
F2: Приход | G2: Навес | H2: Проф брус | I2: Склад2 | J2: Склад1 | K2: РАСХОД | L2: ИТОГ | O2: Купить | P2: Корзина | U2: № | V2: Товар | W2: кол | X2: цена | Y2: сумм
A3: =B3*C3*D3/1000000000 -> 0.01 | B3: 25 | C3: 100 | D3: 4000 | E3: 25*100*4000 | F3: 1000 | G3: 100 | H3: 170 | I3: 130 | J3: 100 | K3: =F3-G3-H3-I3-J3 -> 500 | L3: =F3-K3 -> 500 | O3: 1 | P3: =IF(O3=1,"Сосна "&""&E3) -> Сосна 25*100*4000 | U3: 1 | V3: =P3 -> Сосна 25*100*4000
A4: =B4*C4*D4/1000000000 -> 0.0125 | B4: 25 | C4: 100 | D4: 5000 | E4: 25*100*5000 | F4: 1000 | G4: 100 | H4: 170 | I4: 130 | J4: 100 | K4: =F4-G4-H4-I4-J4 -> 500 | L4: =F4-K4 -> 500 | O4: 1 | P4: =IF(O4=1,"Сосна "&""&E4) -> Сосна 25*100*5000 | U4: 7 | V4: =P4 -> Сосна 25*100*5000
A5: =B5*C5*D5/1000000000 -> 0.015 | B5: 25 | C5: 100 | D5: 6000 | E5: 25*100*6000 | F5: 1000 | G5: 100 | H5: 170 | I5: 130 | J5: 100 | K5: =F5-G5-H5-I5-J5 -> 500 | L5: =F5-K5 -> 500 | O5: 1 | P5: Сосна 25*100*6000 | U5: 9 | V5: =P5 -> Сосна 25*100*6000
A6: =B6*C6*D6/1000000000 -> 0.012 | B6: 25 | C6: 120 | D6: 4000 | E6: 25*120*4000 | F6: 1000 | G6: 100 | H6: 170 | I6: 130 | J6: 100 | K6: =F6-G6-H6-I6-J6 -> 500 | L6: =F6-K6 -> 500 | O6: 1 | P6: Сосна 25*120*4000 | U6: 2
A7: =B7*C7*D7/1000000000 -> 0.015 | B7: 25 | C7: 120 | D7: 5000 | E7: 25*120*5000 | F7: 1000 | G7: 100 | H7: 170 | I7: 130 | J7: 100 | K7: =F7-G7-H7-I7-J7 -> 500 | L7: =F7-K7 -> 500 | O7: 1 | P7: Сосна 25*120*5000 | U7: 3
A8: =B8*C8*D8/1000000000 -> 0.018 | B8: 25 | C8: 120 | D8: 6000 | E8: 25*120*6000 | F8: 1000 | G8: 100 | H8: 170 | I8: 130 | J8: 100 | K8: =F8-G8-H8-I8-J8 -> 500 | L8: =F8-K8 -> 500 | O8: 1 | P8: Сосна 25*120*6000 | U8: 4
A9: =B9*C9*D9/1000000000 -> 0.015 | B9: 25 | C9: 150 | D9: 4000 | E9: 25*150*4000 | F9: 1000 | G9: 100 | H9: 170 | I9: 130 | J9: 100 | K9: =F9-G9-H9-I9-J9 -> 500 | L9: =F9-K9 -> 500 | O9: 1 | P9: Сосна 25*150*4000 | U9: 5
A10: =B10*C10*D10/1000000000 -> 0.01875 | B10: 25 | C10: 150 | D10: 5000 | E10: 25*150*5000 | F10: 1000 | G10: 100 | H10: 170 | I10: 130 | J10: 100 | K10: =F10-G10-H10-I10-J10 -> 500 | L10: =F10-K10 -> 500 | O10: 1 | P10: Сосна 25*150*5000 | U10: 6
A11: =B11*C11*D11/1000000000 -> 0.0225 | B11: 25 | C11: 150 | D11: 6000 | E11: 25*150*6000 | F11: 1000 | G11: 100 | H11: 170 | I11: 130 | J11: 100 | K11: =F11-G11-H11-I11-J11 -> 500 | L11: =F11-K11 -> 500 | O11: 1 | P11: Сосна 25*150*6000 | U11: 8
A12: =B12*C12*D12/1000000000 -> 0.018 | B12: 25 | C12: 180 | D12: 4000 | E12: 25*180*4000 | F12: 1000 | G12: 100 | H12: 170 | I12: 130 | J12: 100 | K12: =F12-G12-H12-I12-J12 -> 500 | L12: =F12-K12 -> 500 | P12: FALSE
A13: =B13*C13*D13/1000000000 -> 0.0225 | B13: 25 | C13: 180 | D13: 5000 | E13: 25*180*5000 | F13: 1000 | G13: 100 | H13: 170 | I13: 130 | J13: 100 | K13: =F13-G13-H13-I13-J13 -> 500 | L13: =F13-K13 -> 500 | P13: FALSE
A14: =B14*C14*D14/1000000000 -> 0.027 | B14: 25 | C14: 180 | D14: 6000 | E14: 25*180*6000 | F14: 1000 | G14: 100 | H14: 170 | I14: 130 | J14: 100 | K14: =F14-G14-H14-I14-J14 -> 500 | L14: =F14-K14 -> 500 | P14: FALSE
A15: =B15*C15*D15/1000000000 -> 0.02 | B15: 25 | C15: 200 | D15: 4000 | E15: 25*200*4000 | F15: 1000 | G15: 100 | H15: 170 | I15: 130 | J15: 100 | K15: =F15-G15-H15-I15-J15 -> 500 | L15: =F15-K15 -> 500 | P15: FALSE
A16: =B16*C16*D16/1000000000 -> 0.025 | B16: 25 | C16: 200 | D16: 5000 | E16: 25*200*5000 | F16: 1000 | G16: 100 | H16: 170 | I16: 130 | J16: 100 | K16: =F16-G16-H16-I16-J16 -> 500 | L16: =F16-K16 -> 500 | P16: FALSE
A17: =B17*C17*D17/1000000000 -> 0.03 | B17: 25 | C17: 200 | D17: 6000 | E17: 25*200*6000 | F17: 1000 | G17: 100 | H17: 170 | I17: 130 | J17: 100 | K17: =F17-G17-H17-I17-J17 -> 500 | L17: =F17-K17 -> 500 | P17: FALSE
A18: =B18*C18*D18/1000000000 -> 0.012 | B18: 30 | C18: 100 | D18: 4000 | E18: 30*100*4000 | P18: FALSE
A19: =B19*C19*D19/1000000000 -> 0.015 | B19: 30 | C19: 100 | D19: 5000 | E19: 30*100*5000 | P19: FALSE
A20: =B20*C20*D20/1000000000 -> 0.018 | B20: 30 | C20: 100 | D20: 6000 | E20: 30*100*6000 | P20: FALSE
A21: =B21*C21*D21/1000000000 -> 0.0144 | B21: 30 | C21: 120 | D21: 4000 | E21: 30*120*4000 | P21: FALSE
A22: =B22*C22*D22/1000000000 -> 0.018 | B22: 30 | C22: 120 | D22: 5000 | E22: 30*120*5000 | P22: FALSE
A23: =B23*C23*D23/1000000000 -> 0.0216 | B23: 30 | C23: 120 | D23: 6000 | E23: 30*120*6000 | P23: FALSE
A24: =B24*C24*D24/1000000000 -> 0.018 | B24: 30 | C24: 150 | D24: 4000 | E24: 30*150*4000 | P24: FALSE
A25: =B25*C25*D25/1000000000 -> 0.0225 | B25: 30 | C25: 150 | D25: 5000 | E25: 30*150*5000 | P25: FALSE
A26: =B26*C26*D26/1000000000 -> 0.027 | B26: 30 | C26: 150 | D26: 6000 | E26: 30*150*6000 | P26: FALSE
A27: =B27*C27*D27/1000000000 -> 0.0216 | B27: 30 | C27: 180 | D27: 4000 | E27: 30*180*4000 | P27: FALSE
A28: =B28*C28*D28/1000000000 -> 0.027 | B28: 30 | C28: 180 | D28: 5000 | E28: 30*180*5000 | P28: FALSE
A29: =B29*C29*D29/1000000000 -> 0.0324 | B29: 30 | C29: 180 | D29: 6000 | E29: 30*180*6000 | P29: FALSE
A30: =B30*C30*D30/1000000000 -> 0.024 | B30: 30 | C30: 200 | D30: 4000 | E30: 30*200*4000 | P30: FALSE
A31: =B31*C31*D31/1000000000 -> 0.03 | B31: 30 | C31: 200 | D31: 5000 | E31: 30*200*5000 | P31: FALSE
A32: =B32*C32*D32/1000000000 -> 0.036 | B32: 30 | C32: 200 | D32: 6000 | E32: 30*200*6000 | P32: FALSE
A33: =B33*C33*D33/1000000000 -> 0.016 | B33: 40 | C33: 100 | D33: 4000 | E33: 40*100*4000 | P33: FALSE
A34: =B34*C34*D34/1000000000 -> 0.02 | B34: 40 | C34: 100 | D34: 5000 | E34: 40*100*5000 | P34: FALSE
A35: =B35*C35*D35/1000000000 -> 0.024 | B35: 40 | C35: 100 | D35: 6000 | E35: 40*100*6000 | P35: FALSE
A36: =B36*C36*D36/1000000000 -> 0.0192 | B36: 40 | C36: 120 | D36: 4000 | E36: 40*120*4000 | P36: FALSE
A37: =B37*C37*D37/1000000000 -> 0.024 | B37: 40 | C37: 120 | D37: 5000 | E37: 40*120*5000 | P37: FALSE
A38: =B38*C38*D38/1000000000 -> 0.0288 | B38: 40 | C38: 120 | D38: 6000 | E38: 40*120*6000 | P38: FALSE
A39: =B39*C39*D39/1000000000 -> 0.024 | B39: 40 | C39: 150 | D39: 4000 | E39: 40*150*4000 | P39: FALSE
A40: =B40*C40*D40/1000000000 -> 0.03 | B40: 40 | C40: 150 | D40: 5000 | E40: 40*150*5000 | P40: FALSE
A41: =B41*C41*D41/1000000000 -> 0.036 | B41: 40 | C41: 150 | D41: 6000 | E41: 40*150*6000 | P41: FALSE
A42: =B42*C42*D42/1000000000 -> 0.0288 | B42: 40 | C42: 180 | D42: 4000 | E42: 40*180*4000 | P42: FALSE
A43: =B43*C43*D43/1000000000 -> 0.036 | B43: 40 | C43: 180 | D43: 5000 | E43: 40*180*5000 | P43: FALSE
A44: =B44*C44*D44/1000000000 -> 0.0432 | B44: 40 | C44: 180 | D44: 6000 | E44: 40*180*6000 | P44: FALSE
A45: =B45*C45*D45/1000000000 -> 0.032 | B45: 40 | C45: 200 | D45: 4000 | E45: 40*200*4000 | P45: FALSE
A46: =B46*C46*D46/1000000000 -> 0.04 | B46: 40 | C46: 200 | D46: 5000 | E46: 40*200*5000 | P46: FALSE
A47: =B47*C47*D47/1000000000 -> 0.048 | B47: 40 | C47: 200 | D47: 6000 | E47: 40*200*6000 | P47: FALSE
A48: =B48*C48*D48/1000000000 -> 0.02 | B48: 50 | C48: 100 | D48: 4000 | E48: 50*100*4000 | P48: FALSE
A49: =B49*C49*D49/1000000000 -> 0.025 | B49: 50 | C49: 100 | D49: 5000 | E49: 50*100*5000 | P49: FALSE
A50: =B50*C50*D50/1000000000 -> 0.03 | B50: 50 | C50: 100 | D50: 6000 | E50: 50*100*6000 | P50: FALSE
A51: =B51*C51*D51/1000000000 -> 0.024 | B51: 50 | C51: 120 | D51: 4000 | E51: 50*120*4000 | P51: FALSE
A52: =B52*C52*D52/1000000000 -> 0.03 | B52: 50 | C52: 120 | D52: 5000 | E52: 50*120*5000 | P52: FALSE
A53: =B53*C53*D53/1000000000 -> 0.036 | B53: 50 | C53: 120 | D53: 6000 | E53: 50*120*6000 | P53: FALSE
A54: =B54*C54*D54/1000000000 -> 0.03 | B54: 50 | C54: 150 | D54: 4000 | E54: 50*150*4000 | P54: FALSE
A55: =B55*C55*D55/1000000000 -> 0.0375 | B55: 50 | C55: 150 | D55: 5000 | E55: 50*150*5000 | P55: FALSE
A56: =B56*C56*D56/1000000000 -> 0.045 | B56: 50 | C56: 150 | D56: 6000 | E56: 50*150*6000 | P56: FALSE
A57: =B57*C57*D57/1000000000 -> 0.036 | B57: 50 | C57: 180 | D57: 4000 | E57: 50*180*4000 | P57: FALSE
A58: =B58*C58*D58/1000000000 -> 0.045 | B58: 50 | C58: 180 | D58: 5000 | E58: 50*180*5000 | P58: FALSE
A59: =B59*C59*D59/1000000000 -> 0.054 | B59: 50 | C59: 180 | D59: 6000 | E59: 50*180*6000 | P59: FALSE
A60: =B60*C60*D60/1000000000 -> 0.04 | B60: 50 | C60: 200 | D60: 4000 | E60: 50*200*4000 | P60: FALSE
A61: =B61*C61*D61/1000000000 -> 0.05 | B61: 50 | C61: 200 | D61: 5000 | E61: 50*200*5000 | P61: FALSE
A62: =B62*C62*D62/1000000000 -> 0.06 | B62: 50 | C62: 200 | D62: 6000 | E62: 50*200*6000 | P62: FALSE
A63: =B63*C63*D63/1000000000 -> 0.04 | B63: 100 | C63: 100 | D63: 4000 | E63: 100*100*4000 | P63: FALSE
A64: =B64*C64*D64/1000000000 -> 0.05 | B64: 100 | C64: 100 | D64: 5000 | E64: 100*100*5000 | P64: FALSE
A65: =B65*C65*D65/1000000000 -> 0.06 | B65: 100 | C65: 100 | D65: 6000 | E65: 100*100*6000 | P65: FALSE
A66: =B66*C66*D66/1000000000 -> 0.048 | B66: 100 | C66: 120 | D66: 4000 | E66: 100*120*4000 | P66: FALSE
A67: =B67*C67*D67/1000000000 -> 0.06 | B67: 100 | C67: 120 | D67: 5000 | E67: 100*120*5000 | P67: FALSE
A68: =B68*C68*D68/1000000000 -> 0.072 | B68: 100 | C68: 120 | D68: 6000 | E68: 100*120*6000 | P68: =IF(O68=1,"Сосна "&""&E68) -> FALSE
A69: =B69*C69*D69/1000000000 -> 0.06 | B69: 100 | C69: 150 | D69: 4000 | E69: 100*150*4000 | P69: FALSE
A70: =B70*C70*D70/1000000000 -> 0.075 | B70: 100 | C70: 150 | D70: 5000 | E70: 100*150*5000 | P70: FALSE
A71: =B71*C71*D71/1000000000 -> 0.09 | B71: 100 | C71: 150 | D71: 6000 | E71: 100*150*6000 | P71: FALSE
A72: =B72*C72*D72/1000000000 -> 0.072 | B72: 100 | C72: 180 | D72: 4000 | E72: 100*180*4000 | P72: FALSE
A73: =B73*C73*D73/1000000000 -> 0.09 | B73: 100 | C73: 180 | D73: 5000 | E73: 100*180*5000 | P73: FALSE
A74: =B74*C74*D74/1000000000 -> 0.108 | B74: 100 | C74: 180 | D74: 6000 | E74: 100*180*6000 | P74: FALSE
A75: =B75*C75*D75/1000000000 -> 0.08 | B75: 100 | C75: 200 | D75: 4000 | E75: 100*200*4000 | P75: FALSE
A76: =B76*C76*D76/1000000000 -> 0.1 | B76: 100 | C76: 200 | D76: 5000 | E76: 100*200*5000 | P76: FALSE
A77: =B77*C77*D77/1000000000 -> 0.12 | B77: 100 | C77: 200 | D77: 6000 | E77: 100*200*6000 | P77: FALSE
A78: =B78*C78*D78/1000000000 -> 0.072 | B78: 150 | C78: 120 | D78: 4000 | E78: 150*120*4000 | P78: FALSE
A79: =B79*C79*D79/1000000000 -> 0.09 | B79: 150 | C79: 120 | D79: 5000 | E79: 150*120*5000 | P79: FALSE
A80: =B80*C80*D80/1000000000 -> 0.108 | B80: 150 | C80: 120 | D80: 6000 | E80: 150*120*6000 | P80: FALSE
A81: =B81*C81*D81/1000000000 -> 0.09 | B81: 150 | C81: 150 | D81: 4000 | E81: 150*150*4000 | P81: FALSE
A82: =B82*C82*D82/1000000000 -> 0.1125 | B82: 150 | C82: 150 | D82: 5000 | E82: 150*150*5000 | P82: FALSE
A83: =B83*C83*D83/1000000000 -> 0.135 | B83: 150 | C83: 150 | D83: 6000 | E83: 150*150*6000 | P83: FALSE
A84: =B84*C84*D84/1000000000 -> 0.108 | B84: 150 | C84: 180 | D84: 4000 | E84: 150*180*4000 | P84: FALSE
A85: =B85*C85*D85/1000000000 -> 0.135 | B85: 150 | C85: 180 | D85: 5000 | E85: 150*180*5000 | P85: FALSE
A86: =B86*C86*D86/1000000000 -> 0.162 | B86: 150 | C86: 180 | D86: 6000 | E86: 150*180*6000 | P86: FALSE
A87: =B87*C87*D87/1000000000 -> 0.12 | B87: 150 | C87: 200 | D87: 4000 | E87: 150*200*4000 | P87: FALSE
A88: =B88*C88*D88/1000000000 -> 0.15 | B88: 150 | C88: 200 | D88: 5000 | E88: 150*200*5000 | P88: FALSE
A89: =B89*C89*D89/1000000000 -> 0.18 | B89: 150 | C89: 200 | D89: 6000 | E89: 150*200*6000 | P89: FALSE
A90: =B90*C90*D90/1000000000 -> 0.096 | B90: 200 | C90: 120 | D90: 4000 | E90: 200*120*4000 | P90: FALSE
A91: =B91*C91*D91/1000000000 -> 0.12 | B91: 200 | C91: 120 | D91: 5000 | E91: 200*120*5000 | P91: FALSE
A92: =B92*C92*D92/1000000000 -> 0.144 | B92: 200 | C92: 120 | D92: 6000 | E92: 200*120*6000 | P92: FALSE
A93: =B93*C93*D93/1000000000 -> 0.144 | B93: 200 | C93: 180 | D93: 4000 | E93: 200*180*4000 | P93: FALSE
A94: =B94*C94*D94/1000000000 -> 0.18 | B94: 200 | C94: 180 | D94: 5000 | E94: 200*180*5000 | P94: FALSE
A95: =B95*C95*D95/1000000000 -> 0.216 | B95: 200 | C95: 180 | D95: 6000 | E95: 200*180*6000 | P95: FALSE
A96: =B96*C96*D96/1000000000 -> 0.16 | B96: 200 | C96: 200 | D96: 4000 | E96: 200*200*4000 | P96: FALSE
A97: =B97*C97*D97/1000000000 -> 0.2 | B97: 200 | C97: 200 | D97: 5000 | E97: 200*200*5000 | P97: FALSE
A98: =B98*C98*D98/1000000000 -> 0.24 | B98: 200 | C98: 200 | D98: 6000 | E98: 200*200*6000 | P98: FALSE

Sheet Лист2
